bitfinex/quotes_SOLUSD_20220113
["timestamp","ask_amount","ask_price","bid_price","bid_amount"]
[1642077047904,1.88516717,151.86,151.8,44.924313]
[1642077048105,1.88516717,151.86,151.81,2.634]
[1642077048307,1.88516717,151.86,151.83,6.914]
[1642077048505,1.88516717,151.86,151.84,3.03219997]
[1642077049006,1.88516717,151.86,151.85,3.03219996]
[1642077049213,1.8095647,151.87,151.85,3.03219996]
[1642077049909,6.2254602,151.9,151.85,3.03219996]
[1642077050107,3.5914602,151.9,151.86,3.03219997]
[1642077050510,2.633,151.89,151.86,3.03219997]
[1642077050709,12.5104,151.89,151.86,3.03219997]
[1642077050907,12.5104,151.89,151.85,0.04]
[1642077050908,12.7604,151.89,151.85,0.04]
[1642077052310,37.3749,151.89,151.85,0.04]
[1642077052711,40.9663602,151.89,151.85,0.04]
[1642077053715,9.5,151.88,151.76,2.633]
[1642077053911,9.8842,151.82,151.75,77.0721]
[1642077054112,2.634,151.81,151.75,77.0721]
[1642077054511,2.884,151.81,151.75,77.0721]
[1642077054713,0.25,151.81,151.75,77.0721]
[1642077055112,9.8844,151.78,151.75,77.0721]
[1642077055312,9.8844,151.78,151.73,2.634]
[1642077055512,10.1344,151.78,151.73,2.634]
[1642077057919,10.1344,151.78,151.7,26.1754]
[1642077058320,10.1344,151.78,151.7,33.0955]
[1642077059517,10.1344,151.78,151.7,33.0956]
[1642077059717,10.1344,151.78,151.7,9.5542]
[1642077060317,10.1344,151.78,151.7,2.634]
[1642077061521,12.7704,151.78,151.7,2.634]
[1642077063120,10.1344,151.78,151.68,2.636]
[1642077063520,10.1344,151.78,151.68,3.146]
[1642077064320,10.1344,151.78,151.7,6.9201]
[1642077065124,2.636,151.79,151.7,7.4301]
[1642077065125,12.5199,151.79,151.7,7.4301]
[1642077065322,10.1339,151.79,151.7,7.1801]
[1642077065522,10.1339,151.79,151.7,73.8001]
[1642077065722,9.8839,151.79,151.7,73.8001]
[1642077065922,9.8839,151.79,151.7,6.9201]
[1642077066323,9.8839,151.79,151.71,2.636]
[1642077066523,9.8839,151.79,151.72,6.9191]
[1642077067124,9.8839,151.79,151.69,26.5933]
[1642077067326,9.8839,151.79,151.69,26.9133]
[1642077067524,10.1339,151.79,151.69,27.1733]
[1642077068124,10.1339,151.79,151.69,93.5433]
[1642077068324,10.1339,151.79,151.71,6.9197]
[1642077068525,10.1339,151.79,151.71,7.1797]
[1642077069625,9.8839,151.79,151.71,7.1797]
[1642077070227,9.8839,151.79,151.71,6.9197]
[1642077070825,10.1339,151.79,151.71,6.9197]
[1642077071025,10.1339,151.79,151.69,26.5933]
[1642077071226,2.636,151.78,151.69,26.5933]
[1642077071627,9.887,151.75,151.69,26.5933]
[1642077071828,9.887,151.75,151.69,2.634]
[1642077072026,10.137,151.75,151.69,2.634]
[1642077072225,10.137,151.75,151.69,9.5548]
[1642077073029,10.137,151.75,151.69,6.9208]
[1642077073428,10.137,151.75,151.67,83.2733]
[1642077074029,10.137,151.75,151.67,76.3519]
[1642077074030,17.015,151.75,151.67,76.3519]
[1642077074231,2.636,151.74,151.65,23.0059]
[1642077074431,9.8898,151.7,151.65,23.0059]
[1642077074629,9.8898,151.7,151.64,9.5587]
[1642077074830,10.1398,151.7,151.63,104.257]
[1642077075030,10.1398,151.7,151.63,101.62]
[1642077075234,10.1398,151.7,151.62,2.637]
[1642077075736,2.637,151.69,151.62,2.637]
[1642077075930,9.8935,151.66,151.62,2.637]
[1642077076331,10.1435,151.66,151.62,2.637]
[1642077076530,2.637,151.69,151.62,2.637]
[1642077076733,0.25,151.66,151.62,2.637]
[1642077076931,2.637,151.69,151.62,2.637]
[1642077077130,2.887,151.69,151.62,2.637]
[1642077077531,9.8919,151.67,151.62,2.637]
[1642077078961,10.1419,151.67,151.59,2.637]
[1642077079160,10.1419,151.67,151.6,6.9247]
[1642077080258,9.8919,151.67,151.6,6.9247]
[1642077080458,9.8916,151.68,151.6,6.9247]
[1642077080659,2.637,151.71,151.6,7.1747]
[1642077081861,2.637,151.71,151.6,8.25982475]
[1642077082062,2.637,151.71,151.61,2.637]
[1642077082262,33.4704,151.72,151.64,6.9227]
[1642077082862,9.8902,151.71,151.61,3.72212475]
[1642077083063,9.8902,151.71,151.61,70.35212475]
[1642077083465,9.8902,151.71,151.61,70.60212475]
[1642077083862,9.8902,151.71,151.61,70.35212475]
[1642077083863,10.1402,151.71,151.61,70.35212475]
[1642077084064,12.7772,151.71,151.61,70.35212475]
[1642077084266,12.7772,151.71,151.63,6.9234]
[1642077084464,10.1402,151.71,151.63,6.9234]
[1642077085163,10.1402,151.71,151.63,7.1834]
[1642077085564,12.7772,151.71,151.63,7.1834]
[1642077087774,12.5272,151.71,151.63,7.1834]
[1642077088874,12.5272,151.71,151.63,6.9234]
[1642077089074,12.5272,151.71,151.61,25.276]
[1642077089274,12.7772,151.71,151.61,22.639]
[1642077090176,12.7772,151.71,151.61,29.5634]
[1642077090380,12.7772,151.71,151.61,22.639]
[1642077090875,22.2772,151.71,151.61,22.639]
[1642077091677,22.2772,151.71,151.59,2.637]
[1642077091879,22.2772,151.71,151.58,169.6075]
[1642077092578,23.8547,151.7,151.58,169.8575]
[1642077092777,9.894,151.65,151.59,2.637]
[1642077092977,0.25,151.65,151.59,2.887]
[1642077094180,9.8923,151.67,151.59,9.5623]
[1642077094577,10.1423,151.67,151.59,9.5623]
[1642077095479,10.1423,151.67,151.59,6.9253]
[1642077095979,10.1423,151.67,151.58,169.6075]
[1642077096178,12.7803,151.67,151.58,169.6075]
[1642077096381,12.7803,151.67,151.58,93.9]
[1642077096579,22.2803,151.67,151.57,2.638]
[1642077096778,22.2803,151.67,151.56,2.638]
[1642077097378,22.2803,151.67,151.56,9.5643]
[1642077097779,22.2803,151.67,151.56,9.8143]
[1642077097980,19.6423,151.67,151.57,1.08735062]
[1642077098180,19.6423,151.67,151.58,2.638]
[1642077098383,19.6423,151.67,151.57,97.62535062]
[1642077098580,19.6423,151.67,151.57,104.13535062]
[1642077098984,19.6423,151.67,151.6,6.9249]
[1642077099182,19.6423,151.67,151.61,2.637]
[1642077099583,9.75,151.67,151.61,2.637]
[1642077099781,9.75,151.67,151.61,2.887]
[1642077100188,9.75,151.67,151.61,9.5613]
[1642077100385,9.75,151.67,151.6,25.02391321]
[1642077100582,9.75,151.67,151.6,0.25]
[1642077100883,19.6424,151.67,151.59,2.637]
[1642077101083,19.6424,151.67,151.59,2.887]
[1642077101684,19.6424,151.67,151.59,2.637]
[1642077102181,9.8941,151.64,151.59,2.637]
[1642077102582,10.1441,151.64,151.58,100.5527]
[1642077102986,10.1441,151.64,151.58,24.3964]
[1642077103182,0.25,151.64,151.58,31.3223]
[1642077103586,2.888,151.67,151.58,31.3223]
[1642077103987,2.888,151.67,151.58,31.0723]
[1642077104187,9.8934,151.65,151.58,31.0723]
[1642077104587,10.1434,151.65,151.58,31.0723]
[1642077107094,10.1434,151.65,151.58,6.9259]
[1642077107294,10.1434,151.65,151.57,100.8263]
[1642077107495,2.638,151.64,151.57,6.9263]
[1642077107697,9.8952,151.63,151.57,6.9263]
[1642077108098,10.1452,151.63,151.57,6.9263]
[1642077110203,10.1452,151.63,151.56,79.4954]
[1642077110405,2.638,151.62,151.56,79.4954]
[1642077110604,2.638,151.62,151.55,23.6661]
[1642077110605,12.7838,151.62,151.55,23.6661]
[1642077110806,10.1458,151.62,151.55,23.6661]
[1642077111409,10.1458,151.62,151.54,6.9277]
[1642077112109,10.1458,151.62,151.52,81.8232]
[1642077112513,10.1458,151.62,151.53,6.9282]
[1642077112729,10.1458,151.62,151.54,2.638]
[1642077114332,10.1458,151.62,151.54,9.5657]
[1642077114934,10.1458,151.62,151.52,81.8232]
[1642077115133,9.8981,151.58,151.52,79.1852]
[1642077115334,9.8981,151.58,151.51,103.4671]
[1642077115535,10.1481,151.58,151.51,103.4671]
[1642077116334,10.1481,151.58,151.51,103.7171]
[1642077117840,26.378,151.61,151.51,9.8171]
[1642077118039,23.74,151.61,151.51,11.16445062]
[1642077118239,9.5,151.63,151.51,11.16445062]
[1642077118439,9.75,151.63,151.52,23.1544]
[1642077118639,9.75,151.63,151.57,6.9259]
[1642077120349,0.25,151.63,151.57,6.9259]
[1642077120545,2.638,151.64,151.57,6.9259]
[1642077120745,9.5,151.67,151.58,2.638]
[1642077120946,2.638,151.69,151.62,6.9242]
[1642077121144,59.0984,151.7,151.62,6.9242]
[1642077121346,56.4614,151.7,151.62,6.9242]
[1642077121748,9.8911,151.68,151.62,6.9242]
[1642077122344,10.1411,151.68,151.62,6.9242]
[1642077123446,10.1411,151.68,151.61,6.9245]
[1642077123888,10.1411,151.68,151.58,100.0185]
[1642077124090,2.637,151.67,151.58,97.3815]
[1642077124295,9.8937,151.64,151.58,97.3815]
[1642077124491,10.1437,151.64,151.58,6.926]
[1642077124890,10.1437,151.64,151.56,2.637]
[1642077125388,10.1437,151.64,151.54,9.5]
[1642077125687,10.1437,151.64,151.55,2.638]
[1642077126087,10.1437,151.64,151.55,2.888]
[1642077126288,10.1437,151.64,151.55,9.8153]
[1642077126589,12.7817,151.64,151.55,9.8153]
[1642077126991,12.7817,151.64,151.55,9.5653]
[1642077127190,12.7817,151.64,151.55,9.8153]
[1642077129294,12.7817,151.64,151.55,7.1773]
[1642077130091,22.2817,151.64,151.53,9.5661]
[1642077130293,66.37,151.63,151.51,2.638]
[1642077130490,9.8991,151.57,151.5,3.78614268]
[1642077130892,10.1491,151.57,151.5,3.78614268]
[1642077131492,10.1491,151.57,151.5,4.03614268]
[1642077132093,10.1491,151.57,151.5,0.25]
[1642077132292,10.1491,151.57,151.5,7.1794]
[1642077132493,10.1491,151.57,151.5,0.25]
[1642077132694,10.1491,151.57,151.49,80.8605]
[1642077134295,10.1491,151.57,151.49,87.7903]
[1642077135723,10.1491,151.57,151.49,85.1523]
[1642077136126,10.1491,151.57,151.49,85.4023]
[1642077137525,10.1491,151.57,151.49,85.1523]
[1642077138427,10.1491,151.57,151.49,78.2225]
[1642077138625,16.7871,151.57,151.49,78.2225]
[1642077139024,2.638,151.56,151.49,78.2225]
[1642077139229,9.9016,151.53,151.49,78.2225]
[1642077139425,9.9016,151.53,151.48,22.7731]
[1642077139629,10.1516,151.53,151.48,22.7731]
[1642077140125,17.2286,151.53,151.46,2.638]
[1642077140325,17.2286,151.53,151.45,24.9297]
[1642077140926,17.2286,151.53,151.44,99.5442]
[1642077141126,17.2286,151.53,151.44,96.9042]
[1642077141325,17.2286,151.53,151.44,103.8364]
[1642077142129,17.2286,151.53,151.44,96.9042]
[1642077142328,9.9044,151.48,151.44,96.9042]
[1642077142527,10.1544,151.48,151.42,9.5731]
[1642077143536,10.1544,151.48,151.42,9.8231]
[1642077144539,10.1544,151.48,151.42,9.5731]
[1642077144745,10.1544,151.48,151.42,7.1831]
[1642077145145,10.1544,151.48,151.42,6.9331]
[1642077146649,10.1544,151.48,151.41,9.5745]
[1642077146845,10.1544,151.48,151.41,2.641]
[1642077147046,9.9071,151.44,151.41,2.641]
[1642077147443,10.1571,151.44,151.41,2.641]
[1642077149353,10.1571,151.44,151.37,23.3757]
[1642077149553,10.1571,151.44,151.37,26.0167]
[1642077149756,10.1571,151.44,151.37,23.3757]
[1642077150155,10.1571,151.44,151.35,2.641]
[1642077150356,10.1571,151.44,151.34,125.59125587]
[1642077150955,10.1571,151.44,151.34,125.84125587]
[1642077151359,10.1571,151.44,151.35,6.9362]
[1642077151558,10.1571,151.44,151.35,7.1862]
[1642077151757,10.1571,151.44,151.35,6.9362]
[1642077151959,9.5,151.43,151.34,2.642]
[1642077152261,9.911,151.39,151.34,2.642]
[1642077152458,9.911,151.39,151.31,2.642]
[1642077152664,10.161,151.39,151.31,2.642]
[1642077153262,10.161,151.39,151.32,6.9373]
[1642077153882,10.161,151.39,151.32,7.1873]
[1642077154583,10.161,151.39,151.32,6.9373]
[1642077159287,10.161,151.39,151.31,2.642]
[1642077159487,9.5,151.38,151.3,37.89569478]
[1642077159685,9.9121,151.36,151.3,37.89569478]
[1642077160087,10.1621,151.36,151.3,37.89569478]
[1642077161387,9.5,151.38,151.3,38.14569478]
[1642077161586,9.75,151.38,151.3,38.14569478]
[1642077161787,9.5,151.41,151.3,38.40569478]
[1642077161988,2.642,151.42,151.31,24.3158]
[1642077162186,86.3719,151.43,151.36,6.9359]
[1642077162388,9.5,151.43,151.36,6.9359]
[1642077163188,9.9084,151.42,151.36,6.9359]
[1642077163588,10.1584,151.42,151.36,6.9359]
[1642077163990,10.1584,151.42,151.35,6.9365]
[1642077164390,10.1584,151.42,151.35,7.1865]
[1642077165690,10.1584,151.42,151.35,0.25]
[1642077166091,10.1584,151.42,151.34,9.8289]
[1642077166694,10.1584,151.42,151.34,9.5789]
[1642077168503,12.8004,151.42,151.34,6.9369]
[1642077168699,22.3004,151.42,151.33,110.2899]
[1642077169198,22.3004,151.42,151.32,2.642]
[1642077169400,22.3004,151.42,151.32,0.25]
[1642077169600,45.0685,151.42,151.32,0.25]
[1642077170202,45.0685,151.42,151.33,1.88056049]
[1642077170401,46.71849521,151.42,151.33,1.88056049]
[1642077170899,72.0,151.41,151.3,3.78614268]
[1642077171101,72.0,151.41,151.29,3.78614268]
[1642077171102,9.9159,151.35,151.29,3.78614268]
[1642077171301,12.5579,151.35,151.29,3.78614268]
[1642077171502,12.8079,151.35,151.29,3.78614268]
[1642077171702,2.892,151.35,151.29,3.78614268]
[1642077171900,9.5,151.38,151.3,29.22225345]
[1642077172201,9.75,151.38,151.3,29.22225345]
[1642077172399,9.75,151.38,151.3,29.47225345]
[1642077172631,9.75,151.38,151.3,36.41065345]
[1642077172632,19.6618,151.38,151.3,36.41065345]
[1642077172803,9.5,151.38,151.3,36.41065345]
[1642077173001,25.4101,151.42,151.31,1.09417869]
[1642077173200,32.5454,151.44,151.31,1.09417869]
[1642077173400,32.5454,151.44,151.31,7.60417869]
[1642077174001,32.5454,151.44,151.31,11.36983145]
[1642077174200,42.7035,151.44,151.35,7.9269]
[1642077174400,2.642,151.43,151.35,7.9269]
[1642077174606,2.892,151.43,151.35,7.9269]
[1642077176305,12.8008,151.43,151.35,7.9269]
[1642077176503,12.8008,151.43,151.35,13.9269]
[1642077176703,2.892,151.43,151.35,13.9269]
[1642077177909,12.8007,151.43,151.34,7.9278]
[1642077178911,9.9104,151.41,151.33,87.2332]
[1642077179107,10.1604,151.41,151.33,87.4832]
[1642077181040,0.25,151.41,151.33,87.4832]
[1642077181446,9.75,151.42,151.34,2.642]
[1642077181641,9.75,151.42,151.38,7.9258]
[1642077182742,0.25,151.42,151.38,7.9258]
[1642077183144,2.642,151.45,151.38,7.9258]
[1642077183342,2.641,151.48,151.38,8.1758]
[1642077183542,12.141,151.48,151.39,2.641]
[1642077183741,12.141,151.48,151.42,7.9234]
[1642077184943,9.5,151.48,151.42,45.23877093]
[1642077185143,2.641,151.54,151.43,2.641]
[1642077185343,9.5,151.55,151.48,7.9204]
[1642077185543,9.5,151.55,151.48,16.1374]
[1642077185745,9.5,151.55,151.48,45.11578288]
[1642077186144,9.5,151.55,151.48,45.36578288]
[1642077186343,9.5,151.55,151.49,2.64]
[1642077186544,9.5,151.55,151.5,7.919]
[1642077186942,17.52519031,151.58,151.5,7.919]
[1642077187144,9.5,151.58,151.5,7.919]
[1642077187544,19.398,151.58,151.5,14.179]
[1642077187746,9.5,151.58,151.5,14.179]
[1642077188353,9.5,151.58,151.5,14.429]
[1642077189547,9.75,151.58,151.5,14.429]
[1642077190846,1.5271979,151.57,151.5,14.429]
[1642077191049,1.7771979,151.57,151.5,14.429]
[1642077191248,0.25,151.57,151.5,14.429]
[1642077192148,2.888,151.59,151.5,14.429]
[1642077194352,2.638,151.59,151.5,14.429]
[1642077194550,2.638,151.6,151.55,6.9267]
[1642077194750,2.638,151.63,151.55,30.5908415]
[1642077194951,2.638,151.63,151.55,36.5908415]
[1642077195351,2.638,151.63,151.55,30.8408415]
[1642077195553,9.5,151.66,151.6,6.9245]
[1642077195752,2.638,151.65,151.55,6.0]
[1642077195953,9.5,151.64,151.53,6.0]
[1642077196255,9.5,151.64,151.54,2.638]
[1642077196654,9.75,151.64,151.55,31.87839002]
[1642077196854,9.5,151.64,151.57,6.9262]
[1642077197055,9.5,151.64,151.57,15.4452]
[1642077197056,0.25,151.64,151.57,15.4452]
[1642077197355,0.25,151.64,151.57,15.4352]
[1642077197556,2.638,151.66,151.57,21.6952]
[1642077197756,9.5,151.67,151.57,21.6952]
[1642077197957,12.5306,151.66,151.57,15.1852]
[1642077198158,12.5306,151.66,151.57,6.9262]
[1642077198358,14.18059521,151.66,151.57,6.9262]
[1642077198557,14.18059521,151.66,151.57,7.1762]
[1642077198964,14.43059521,151.66,151.57,7.1762]
[1642077199560,9.5,151.65,151.57,7.1762]
[1642077199761,9.5,151.65,151.57,13.1762]
[1642077200060,9.75,151.65,151.57,13.1762]
[1642077200663,9.75,151.65,151.58,2.638]
[1642077200864,0.25,151.65,151.58,2.638]
[1642077201065,10.1426,151.66,151.6,6.9245]
[1642077201466,0.25,151.66,151.6,6.9245]
[1642077201864,12.388,151.68,151.6,6.9245]
[1642077202677,9.892,151.67,151.6,6.9245]
[1642077202866,2.637,151.66,151.6,6.9245]
[1642077203067,2.887,151.66,151.61,24.43994499]
[1642077203274,2.637,151.68,151.62,6.9235]
[1642077203465,2.1968436,151.69,151.62,7.1835]
[1642077203664,2.1968436,151.69,151.62,7.4335]
[1642077203864,2.1968436,151.69,151.62,13.4335]
[1642077204267,2.1968436,151.69,151.62,13.1735]
[1642077204465,2.1968436,151.69,151.62,13.4335]
[1642077204866,2.1968436,151.69,151.62,13.1735]
[1642077205265,2.1968436,151.69,151.62,12.9235]
[1642077205465,2.1968436,151.69,151.62,13.1735]
[1642077206066,2.1968436,151.69,151.62,7.1735]
[1642077206266,2.4468436,151.69,151.62,7.1735]
[1642077206493,2.4468436,151.69,151.62,6.9235]
[1642077207293,2.637,151.68,151.62,6.9235]
[1642077207493,12.7787,151.68,151.62,6.9235]
[1642077208694,10.1417,151.68,151.6,2.637]
[1642077209093,10.1417,151.68,151.6,9.147]
[1642077210297,10.1417,151.68,151.6,0.51]
[1642077210496,10.1417,151.68,151.59,9.147]
[1642077210696,10.1417,151.68,151.59,3.147]
[1642077210896,10.1417,151.68,151.59,9.147]
[1642077211298,10.1417,151.68,151.61,6.9242]
[1642077211498,10.1417,151.68,151.61,7.1842]
[1642077214201,0.25,151.68,151.61,7.1842]
[1642077214605,0.25,151.69,151.61,7.4342]
[1642077214803,36.7615,151.71,151.61,7.4342]
[1642077214804,34.1245,151.71,151.62,2.637]
[1642077215003,34.1245,151.71,151.65,6.9221]
[1642077215203,9.5,151.71,151.65,6.9221]
[1642077216005,9.75,151.71,151.65,6.9221]
[1642077217507,19.6392,151.71,151.65,6.9221]
[1642077219712,19.6392,151.71,151.62,2.637]
[1642077219917,2.637,151.7,151.62,2.637]
[1642077220114,9.8941,151.66,151.56,2.637]
[1642077220313,2.638,151.65,151.55,79.4542]
[1642077220514,2.888,151.65,151.56,31.49106458]
[1642077220915,2.888,151.65,151.56,37.49106458]
[1642077221114,2.888,151.65,151.56,37.74106458]
[1642077221715,2.888,151.65,151.56,31.74106458]
[1642077222114,2.888,151.65,151.56,37.74106458]
[1642077222320,9.8941,151.64,151.57,6.9259]
[1642077222517,10.1441,151.64,151.57,6.9259]
[1642077222916,10.1441,151.64,151.56,31.74106458]
[1642077223117,10.1441,151.64,151.56,0.25]
[1642077223322,10.1441,151.64,151.55,85.7042]
[1642077224120,10.1441,151.64,151.55,108.7230238]
[1642077224319,10.1441,151.64,151.56,6.9265]
[1642077224521,10.1441,151.64,151.56,7.1765]
[1642077225862,10.1441,151.64,151.56,13.4365]
[1642077226463,0.25,151.64,151.56,13.1765]
[1642077226866,2.638,151.65,151.56,13.1765]
[1642077227064,19.3928,151.66,151.6,6.9245]
[1642077227465,9.5,151.66,151.6,6.9245]
[1642077228267,9.75,151.66,151.6,6.9245]
[1642077229268,9.75,151.66,151.6,12.9245]
[1642077230271,19.6424,151.66,151.6,12.9245]
[1642077231170,19.6424,151.66,151.61,25.9645419]
[1642077231369,9.75,151.66,151.61,32.8888419]
[1642077231570,23.1758,151.67,151.61,38.8888419]
[1642077231770,9.5,151.7,151.61,39.1388419]
[1642077232070,9.5,151.7,151.62,2.637]
[1642077232071,9.75,151.7,151.62,2.637]
[1642077232472,9.75,151.7,151.62,9.147]
[1642077232875,9.75,151.7,151.65,6.9221]
[1642077233472,9.75,151.7,151.62,32.4427]
[1642077234076,19.6397,151.7,151.63,6.9235]
[1642077234474,19.6397,151.7,151.63,6.0]
[1642077234973,19.6397,151.7,151.62,8.637]
[1642077235174,2.637,151.69,151.62,2.637]
[1642077235376,12.5275,151.69,151.63,6.9235]
[1642077235574,12.7775,151.69,151.63,12.9235]
[1642077237177,10.1405,151.69,151.63,6.0]
[1642077237378,6.40757844,151.7,151.61,31.9645419]
[1642077237576,3.77057844,151.7,151.61,55.5491419]
[1642077237881,3.77057844,151.7,151.62,66.37]
[1642077238077,3.77057844,151.7,151.62,6.51]
[1642077238478,3.77057844,151.7,151.62,0.51]
[1642077238678,3.77057844,151.7,151.62,6.51]
[1642077238879,3.77057844,151.7,151.62,6.25]
[1642077239079,3.77057844,151.7,151.62,6.51]
[1642077239281,3.77057844,151.7,151.64,23.071]
[1642077239480,3.77057844,151.7,151.64,29.321]
[1642077240182,3.77057844,151.7,151.66,6.9213]
[1642077240582,3.77057844,151.7,151.66,13.1713]
[1642077245216,3.77057844,151.7,151.66,7.1713]
[1642077246520,3.77057844,151.7,151.66,13.1713]
[1642077248522,3.77057844,151.7,151.66,13.4313]
[1642077249226,3.77057844,151.7,151.67,30.54419612]
[1642077249423,3.77057844,151.7,151.68,3.03219997]
[1642077249624,3.77057844,151.7,151.68,9.95229997]
[1642077250225,3.77057844,151.7,151.68,15.95229997]
[1642077251124,3.77057844,151.7,151.68,16.20229997]
[1642077251325,3.77057844,151.7,151.68,15.95229997]
[1642077252127,3.77057844,151.7,151.68,9.95229997]
[1642077252527,3.77057844,151.7,151.68,10.20229997]
[1642077253136,3.77057844,151.7,151.69,9.95269996]
[1642077254037,3.77057844,151.7,151.69,16.20269996]
[1642077256033,3.77057844,151.7,151.69,10.20269996]
[1642077256234,3.77057844,151.7,151.69,16.20269996]
[1642077256636,3.77057844,151.7,151.69,10.20269996]
[1642077256836,3.77057844,151.7,151.69,16.20269996]
[1642077257842,3.77057844,151.7,151.69,18.83869996]
[1642077258547,3.77057844,151.7,151.69,19.09869996]
[1642077259645,3.77057844,151.7,151.69,85.46869996]
[1642077259846,3.77057844,151.7,151.69,19.09869996]
[1642077260445,3.77057844,151.7,151.69,16.46269996]
[1642077265783,3.77057844,151.7,151.69,16.21269996]
[1642077265982,3.77057844,151.7,151.69,9.95269996]
[1642077267179,3.77057844,151.7,151.69,15.95269996]
[1642077267384,3.77057844,151.7,151.69,9.95269996]
[1642077267581,3.77057844,151.7,151.69,15.95269996]
[1642077272087,3.77057844,151.7,151.69,16.46269996]
[1642077272386,3.76392233,151.75,151.69,88.50089993]
[1642077273287,2.1968436,151.76,151.69,88.50089993]
[1642077277289,2.1968436,151.76,151.7,0.07]
[1642077277489,2.1968436,151.76,151.72,66.37]
[1642077277689,0.3416436,151.76,151.74,74.2731]
[1642077277992,0.3416436,151.76,151.75,2.704]
[1642077278188,0.15689862,151.77,151.75,8.76839993]
[1642077278389,0.15689862,151.77,151.75,15.27839993]
[1642077278591,0.00689862,151.77,151.76,25.18778682]
[1642077278794,4.63235807,151.86,151.76,104.56928682]
[1642077278990,4.63235807,151.86,151.76,85.8915]
[1642077279995,7.26635807,151.86,151.77,28.92974744]
[1642077280193,4.63235807,151.86,151.82,24.91065239]
[1642077280593,4.63235807,151.86,151.82,31.16065239]
[1642077280793,0.86843574,151.86,151.82,31.16065239]
[1642077280993,0.86843574,151.86,151.82,38.31065239]
[1642077281824,0.86843574,151.86,151.84,7.901]
[1642077282020,0.86843574,151.86,151.85,33.62795981]
[1642077282320,2.634,151.89,151.85,33.62795981]
[1642077282523,2.633,151.94,151.85,40.13795981]
[1642077282724,2.633,151.94,151.86,66.44]
[1642077282923,82.09442233,151.95,151.86,66.44]
[1642077283122,82.09442233,151.95,151.86,72.95]
[1642077283822,78.8305,151.95,151.9,7.8968]
[1642077284025,2.633,151.95,151.91,25.87245615]
[1642077284226,2.632,151.97,151.91,25.87245615]
[1642077284422,2.632,151.97,151.91,32.13245615]
[1642077285323,2.632,151.97,151.94,28.40760219]
[1642077285723,2.632,151.98,151.95,6.06439993]
[1642077286724,2.632,151.98,151.95,12.06439993]
[1642077287125,2.632,151.98,151.95,6.06439993]
[1642077287526,2.632,151.98,151.95,13.96029993]
[1642077288728,2.632,151.98,151.95,19.96029993]
[1642077288927,2.632,151.98,151.95,20.21029993]
[1642077289132,0.33056003,151.99,151.95,20.21029993]
[1642077290429,0.33056003,151.99,151.95,20.47029993]
[1642077290829,0.33056003,151.99,151.95,20.21029993]
[1642077291030,0.33056003,151.99,151.95,19.96029993]
[1642077292739,0.33056003,151.99,151.95,13.96029993]
[1642077292932,0.33056003,151.99,151.95,6.06439993]
[1642077293132,0.33056003,151.99,151.94,7.8965]
[1642077293334,2.96256003,151.99,151.94,7.8965]
[1642077293533,3.21256003,151.99,151.94,7.8965]
[1642077294034,3.21256003,151.99,151.95,30.37844093]
[1642077295135,3.21256003,151.99,151.95,38.27444093]
[1642077295537,0.58056003,151.99,151.95,38.27444093]
[1642077295936,0.33056003,151.99,151.95,38.27444093]
[1642077296739,0.33056003,151.99,151.95,7.896]
[1642077300238,0.33056003,151.99,151.94,29.56250341]
[1642077300239,0.33056003,151.99,151.94,7.8965]